fUSD/lending_fUSD_20240214
["ID","MTS","AMOUNT","RATE_DAILY","PERIOD"]
[314057122,1707949832255,-152.88,0.00033625,2]
[314057123,1707949832266,-198.06,0.00033685,2]
[314057124,1707949832276,-875.2,0.0003372,2]
[314057125,1707949832287,-1852.42,0.00033742,2]
[314057126,1707949832298,-198.06,0.00033775,2]
[314057127,1707949832307,-198.06,0.00033865,2]
[314057128,1707949832317,-152.88,0.00033898,2]
[314057129,1707949832326,-1897.87,0.00033924,2]
[314057130,1707949832335,-198.06,0.00033954,2]
[314057131,1707949832345,-154.90161488,0.0003403,2]
[314057132,1707949832354,-198.06,0.00034044,2]
[314057133,1707949832365,-166.17,0.00034125,2]
[314057134,1707949832375,-198.06,0.00034134,2]
[314057135,1707949832384,-152.88,0.00034171,2]
[314057136,1707949832393,-198.06,0.00034223,2]
[314057137,1707949832403,-18490.7157,0.00034272,2]
[314057138,1707949832412,-198.06,0.00034313,2]
[314057139,1707949832421,-1758.34530594,0.00034321,4]
[314057140,1707949832431,-198.06,0.00034403,2]
[314057141,1707949832495,-152.88,0.00034445,2]
[314057142,1707949832505,-151.021518,0.00034498,7]
[314057143,1707949832514,-647.68,0.00034521,2]
[314057144,1707949832524,-625.88,0.00034538,2]
[314057145,1707949832543,-187.14142258,0.00034548,2]
[314057146,1707949832553,-154.90161488,0.00034552,2]
[314057147,1707949832562,-417136.0,0.00034558,2]
[314057148,1707949832571,-152.88,0.00034718,2]
[314057149,1707949832581,-17749.91730642,0.0003479,2]
[314057150,1707949832590,-17749.91730633,0.0003479,2]
[314057151,1707949832599,-171.021518,0.00034798,7]
[314057152,1707949832609,-1139.11271515,0.00034799,2]
[314057153,1707949832618,-1139.11271515,0.00034799,2]
[314057154,1707949832628,-1139.11271515,0.00034799,2]
[314057155,1707949832637,-7000.0,0.000348,3]
[314057156,1707949832646,-420.47053604,0.000348,7]
[314057157,1707949832656,-17749.91730633,0.0003484,2]
[314057158,1707949832665,-2225.87730951,0.0003489,7]
[314057159,1707949832674,-26150.28520399,0.00034897,2]
[314057160,1707949832683,-81082.403,0.000349,2]
[314057161,1707949832693,-7170.8709,0.000349,2]
[314057162,1707949832701,-852.8636,0.000349,2]
[314057163,1707949832711,-243.28873318,0.000349,2]
[314057164,1707949832720,-159.47,0.00034977,2]
[314057165,1707949832729,-6677.63192853,0.0003499,8]
[314057166,1707949832741,-152.88,0.00034992,2]
[314057167,1707949832751,-100000.0,0.00035,5]
[314057168,1707949832761,-165.0,0.00035,2]
[314057169,1707949832770,-150.0,0.00035,2]
[314057170,1707949832779,-154.90161488,0.00035073,2]
[314057171,1707949832788,-537.45080432,0.00035098,2]
[314057172,1707949832797,-1483.91820634,0.00035163,8]
[314057173,1707949832807,-2225.87730951,0.00035166,8]
[314057174,1707949832816,-171.021518,0.00035198,14]
[314057175,1707949832825,-1948.0,0.00035206,2]
[314057176,1707949832835,-243.647,0.00035206,2]
[314057177,1707949832844,-964.147,0.00035206,2]
[314057178,1707949832853,-442.661,0.00035206,2]
[314057179,1707949832862,-1018.812,0.00035206,2]
[314057180,1707949832871,-599.0,0.00035206,2]
[314057181,1707949832881,-416.335,0.00035206,2]
[314057182,1707949832890,-1138.0,0.00035206,2]
[314057183,1707949832899,-150.0,0.00035206,2]
[314057184,1707949832908,-431.489,0.00035206,2]
[314057185,1707949832917,-153.746,0.00035206,2]
[314057186,1707949832926,-397.0,0.00035206,2]
[314057187,1707949832935,-1368.0,0.00035206,2]
[314057188,1707949832944,-2833.0,0.00035206,2]
[314057189,1707949832953,-453.0,0.00035206,2]
[314057190,1707949832962,-152.88,0.00035265,2]
[314057191,1707949832971,-1000.0,0.000353,2]
[314057192,1707949832981,-243.28873318,0.00035345,2]
[314057193,1707949832990,-718.28,0.00035401,2]
[314057194,1707949832999,-1139.11271515,0.00035496,2]
[314057195,1707949833009,-171.021518,0.00035498,18]
[314057196,1707949833018,-5000.0,0.000355,15]
[314057197,1707949833026,-582.4448,0.00035516,2]
[314057198,1707949833035,-1056.0172,0.00035516,2]
[314057199,1707949833044,-2432.682,0.00035516,2]
[314057200,1707949833054,-5000.0,0.00035516,3]
[314057201,1707949833066,-450.34688123,0.00035516,2]
[314057202,1707949833075,-152.88,0.00035538,2]
[314057203,1707949833084,-365.98,0.00035565,2]
[314057204,1707949833093,-200.0,0.00035578,2]
[314057205,1707949833102,-154.90161488,0.00035595,2]
[314057206,1707949833111,-153.71,0.000356,3]
[314057207,1707949833120,-153.71,0.000356,3]
[314057208,1707949833129,-153.71,0.000356,3]
[314057209,1707949833138,-153.71,0.000356,3]
[314057210,1707949833147,-153.71,0.000356,3]
[314057211,1707949833156,-153.71,0.000356,3]
[314057212,1707949833166,-153.71,0.000356,3]
[314057213,1707949833175,-153.71,0.000356,3]
[314057214,1707949833184,-153.71,0.000356,3]
[314057215,1707949833193,-153.71,0.000356,3]
[314057216,1707949833202,-153.71,0.000356,3]
[314057217,1707949833211,-153.71,0.000356,3]
[314057218,1707949833220,-153.71,0.000356,3]
[314057219,1707949833230,-153.71,0.000356,3]
[314057220,1707949833239,-153.71,0.000356,3]
[314057221,1707949833248,-153.71,0.000356,3]
[314057222,1707949833257,-153.71,0.000356,3]
[314057223,1707949833266,-2000.0,0.000356,2]
[314057224,1707949833275,-507.18918888,0.00035616,7]
[314057225,1707949833286,-518.00380778,0.00035616,7]
[314057226,1707949833298,-360.66121951,0.00035616,7]
[314057227,1707949833308,-515.68000767,0.00035616,7]
[314057228,1707949833317,-500.0,0.00035616,7]
[314057229,1707949833326,-595.24457932,0.00035616,7]
[314057230,1707949833335,-546.43602182,0.00035616,7]
[314057231,1707949833345,-523.18131422,0.00035616,7]
[314057232,1707949833354,-500.0,0.00035616,7]
[314057233,1707949833366,-500.0,0.00035616,7]
[314057234,1707949833375,-570.49021865,0.00035616,7]
[314057235,1707949833384,-546.40062838,0.00035616,7]
[314057236,1707949833393,-500.0,0.00035616,7]
[314057237,1707949833403,-500.0,0.00035616,7]
[314057238,1707949833412,-607.66,0.00035616,7]
[314057239,1707949833421,-500.0,0.00035616,7]
[314057240,1707949833430,-500.0,0.00035616,7]
[314057241,1707949833439,-500.0,0.00035616,7]
[314057242,1707949833448,-399.79354331,0.00035616,7]
[314057243,1707949833458,-500.0,0.00035616,7]
[314057244,1707949833467,-500.0,0.00035616,7]
[314057245,1707949833476,-500.0,0.00035616,7]
[314057246,1707949833485,-500.0,0.00035616,7]
[314057247,1707949833494,-500.0,0.00035616,7]
[314057248,1707949833503,-500.0,0.00035616,7]
[314057249,1707949833513,-500.0,0.00035616,7]
[314057250,1707949833522,-500.0,0.00035616,7]
[314057251,1707949833531,-593.74489739,0.00035616,7]
[314057252,1707949833541,-500.0,0.00035616,7]
[314057253,1707949833550,-500.0,0.00035616,7]
[314057254,1707949833559,-500.0,0.00035616,7]
[314057255,1707949833568,-500.0,0.00035616,7]
[314057256,1707949833577,-500.0,0.00035616,7]
[314057257,1707949833587,-500.0,0.00035616,7]
[314057258,1707949833596,-592.00026959,0.00035616,7]
[314057259,1707949833605,-500.0,0.00035616,7]
[314057260,1707949833614,-582.38182279,0.00035616,7]
[314057261,1707949833623,-500.0,0.00035616,7]
[314057262,1707949833632,-500.0,0.00035616,7]
[314057263,1707949833641,-500.0,0.00035616,7]
[314057264,1707949833650,-500.0,0.00035616,7]
[314057265,1707949833659,-500.0,0.00035616,7]
[314057266,1707949833668,-500.0,0.00035616,7]
[314057267,1707949833677,-500.0,0.00035616,7]
[314057268,1707949833686,-500.0,0.00035616,7]
[314057269,1707949833696,-500.0,0.00035616,2]
[314057270,1707949833705,-500.0,0.00035616,7]
[314057271,1707949833714,-500.0,0.00035616,7]
[314057272,1707949833723,-500.0,0.00035616,7]
[314057273,1707949833733,-500.0,0.00035616,7]
[314057274,1707949833742,-593.31,0.00035616,7]
[314057275,1707949833751,-500.0,0.00035616,7]
[314057276,1707949833760,-500.0,0.00035616,7]
[314057277,1707949833770,-500.0,0.00035616,7]
[314057278,1707949833779,-500.0,0.00035616,7]
[314057279,1707949833788,-500.0,0.00035616,7]
[314057280,1707949833799,-500.0,0.00035616,7]
[314057281,1707949833808,-500.0,0.00035616,7]
[314057282,1707949833817,-500.0,0.00035616,7]
[314057283,1707949833826,-500.0,0.00035616,7]
[314057284,1707949833835,-500.0,0.00035616,7]
[314057285,1707949833844,-500.0,0.00035616,7]
[314057286,1707949833853,-500.0,0.00035616,7]
[314057287,1707949833862,-500.0,0.00035616,7]
[314057288,1707949833871,-500.0,0.00035616,7]
[314057289,1707949833880,-500.0,0.00035616,7]
[314057290,1707949833889,-500.0,0.00035616,7]
[314057291,1707949833898,-500.0,0.00035616,7]
[314057292,1707949833907,-644.4,0.00035616,7]
[314057293,1707949833917,-500.0,0.00035616,7]
[314057294,1707949833926,-500.0,0.00035616,7]
[314057295,1707949833935,-173.64,0.00035616,7]
[314057296,1707949833944,-500.0,0.00035616,7]
[314057297,1707949833954,-500.0,0.00035616,7]
[314057298,1707949833962,-500.0,0.00035616,7]
[314057299,1707949833972,-500.0,0.00035616,7]
[314057300,1707949833981,-500.0,0.00035616,7]
[314057301,1707949833991,-500.0,0.00035616,7]
[314057302,1707949834001,-500.0,0.00035616,7]
[314057303,1707949834010,-500.0,0.00035616,7]
[314057304,1707949834021,-500.0,0.00035616,7]
[314057305,1707949834032,-500.0,0.00035616,7]
[314057306,1707949834043,-500.0,0.00035616,7]
[314057307,1707949834052,-500.0,0.00035616,7]
[314057308,1707949834061,-526.25802627,0.00035616,7]
[314057309,1707949834072,-500.0,0.00035616,7]
[314057310,1707949834081,-554.46492336,0.00035616,7]
[314057311,1707949834092,-500.0,0.00035616,7]
[314057312,1707949834101,-500.0,0.00035616,7]
[314057313,1707949834111,-500.0,0.00035616,7]
[314057314,1707949834121,-500.0,0.00035616,7]
[314057315,1707949834132,-500.0,0.00035616,7]
[314057316,1707949834142,-500.0,0.00035616,7]
[314057317,1707949834151,-500.0,0.00035616,7]
[314057318,1707949834163,-500.0,0.00035616,7]
[314057319,1707949834173,-500.0,0.00035616,7]
[314057320,1707949834183,-323.18438137,0.00035616,7]
[314057321,1707949834193,-388.9,0.00035616,7]
[314057322,1707949834205,-500.0,0.00035616,7]
[314057323,1707949834214,-500.0,0.00035616,7]
[314057324,1707949834226,-500.0,0.00035616,7]
[314057325,1707949834238,-500.0,0.00035616,7]
[314057326,1707949834248,-741.2,0.00035616,7]
[314057327,1707949834257,-500.0,0.00035616,7]
[314057328,1707949834266,-500.0,0.00035616,7]
[314057329,1707949834277,-500.0,0.00035616,7]
[314057330,1707949834294,-285.64000001,0.00035616,7]
[314057331,1707949834303,-500.0,0.00035616,7]
[314057332,1707949834313,-500.0,0.00035616,7]
[314057333,1707949834322,-845.79,0.00035616,7]
[314057334,1707949834331,-500.0,0.00035616,7]
[314057335,1707949834340,-500.0,0.00035616,7]
[314057336,1707949834349,-500.0,0.00035616,7]
[314057337,1707949834359,-500.0,0.00035616,7]
[314057338,1707949834370,-500.0,0.00035616,7]
[314057339,1707949834381,-500.0,0.00035616,7]
[314057340,1707949834390,-500.0,0.00035616,7]
[314057341,1707949834399,-500.0,0.00035616,7]
[314057342,1707949834408,-500.0,0.00035616,7]
[314057343,1707949834417,-500.0,0.00035616,7]
[314057344,1707949834428,-500.0,0.00035616,7]
[314057345,1707949834438,-500.0,0.00035616,7]
[314057346,1707949834447,-881.95,0.00035616,7]
[314057347,1707949834458,-500.0,0.00035616,7]
[314057348,1707949834467,-500.0,0.00035616,7]
[314057349,1707949834476,-500.0,0.00035616,7]
[314057350,1707949834487,-500.0,0.00035616,7]
[314057351,1707949834496,-500.0,0.00035616,7]
[314057352,1707949834506,-1839.92,0.00035616,7]
[314057353,1707949834515,-648.59,0.00035616,7]
[314057354,1707949834524,-759.33,0.00035616,7]
[314057355,1707949834533,-500.0,0.00035616,7]
[314057356,1707949834544,-500.0,0.00035616,7]
[314057357,1707949834554,-500.0,0.00035616,7]
[314057358,1707949834563,-500.0,0.00035616,7]
[314057359,1707949834572,-236.12285841,0.00035616,7]
[314057360,1707949834582,-500.0,0.00035616,7]
[314057361,1707949834592,-551.53,0.00035616,7]
[314057362,1707949834601,-1570.29,0.00035616,7]
[314057363,1707949834611,-500.0,0.00035616,7]
[314057364,1707949834621,-726.78,0.00035616,7]
[314057365,1707949834631,-596.66,0.00035616,7]
[314057366,1707949834641,-500.0,0.00035616,7]
[314057367,1707949834651,-500.0,0.00035616,7]
[314057368,1707949834661,-500.0,0.00035616,7]
[314057369,1707949834670,-500.0,0.00035616,7]
[314057370,1707949834681,-551.94385762,0.00035616,7]
[314057371,1707949834690,-328.32403244,0.00035616,7]
[314057372,1707949834701,-581.11,0.00035616,7]
[314057373,1707949834711,-828.48,0.00035616,7]
[314057374,1707949834721,-500.0,0.00035616,7]
[314057375,1707949834732,-500.0,0.00035616,7]
[314057376,1707949834743,-500.0,0.00035616,7]
[314057377,1707949834754,-500.0,0.00035616,7]
[314057378,1707949834763,-500.0,0.00035616,7]
[314057379,1707949834772,-500.0,0.00035616,7]
[314057380,1707949834782,-500.0,0.00035616,7]
[314057381,1707949834792,-516.34590023,0.00035616,7]
[314057382,1707949834802,-500.0,0.00035616,7]
[314057383,1707949834812,-500.0,0.00035616,7]
[314057384,1707949834820,-614.93,0.00035616,7]
[314057385,1707949834832,-500.0,0.00035616,7]
[314057386,1707949834841,-574.03923966,0.00035616,7]
[314057387,1707949834851,-500.0,0.00035616,7]
[314057388,1707949834861,-500.0,0.00035616,7]
[314057389,1707949834871,-502.02955413,0.00035616,7]
[314057390,1707949834881,-500.0,0.00035616,7]
[314057391,1707949834890,-500.0,0.00035616,7]
[314057392,1707949834899,-500.0,0.00035616,7]
[314057393,1707949834908,-500.0,0.00035616,7]
[314057394,1707949834917,-500.0,0.00035616,7]
[314057395,1707949834926,-500.0,0.00035616,7]
[314057396,1707949834936,-500.0,0.00035616,7]
[314057397,1707949834946,-548.45074256,0.00035616,7]
[314057398,1707949834956,-436.68599961,0.00035616,7]
[314057399,1707949834965,-500.0,0.00035616,7]
[314057400,1707949834976,-518.54513088,0.00035616,7]
[314057401,1707949834987,-1028.47,0.00035616,7]
[314057402,1707949834997,-500.0,0.00035616,7]
[314057403,1707949835006,-500.0,0.00035616,7]
[314057404,1707949835016,-500.0,0.00035616,7]
[314057405,1707949835025,-500.0,0.00035616,7]
[314057406,1707949835035,-500.0,0.00035616,7]
[314057407,1707949835044,-500.0,0.00035616,7]
[314057408,1707949835055,-500.0,0.00035616,7]
[314057409,1707949835065,-654.23,0.00035616,7]
[314057410,1707949835074,-500.0,0.00035616,7]
[314057411,1707949835083,-351.42868258,0.00035616,7]
[314057412,1707949835092,-500.0,0.00035616,7]
[314057413,1707949835101,-500.0,0.00035616,7]
[314057414,1707949835110,-500.0,0.00035616,7]
[314057415,1707949835119,-500.0,0.00035616,7]
[314057416,1707949835128,-500.0,0.00035616,7]
[314057417,1707949835138,-279.85347329,0.00035616,7]
[314057418,1707949835147,-571.1,0.00035616,7]
[314057419,1707949835156,-500.0,0.00035616,7]
[314057420,1707949835165,-503.20408133,0.00035616,7]
[314057421,1707949835174,-509.92,0.00035616,7]
[314057422,1707949835184,-610.87,0.00035616,7]
[314057423,1707949835193,-500.0,0.00035616,7]
[314057424,1707949835202,-500.0,0.00035616,7]
[314057425,1707949835211,-500.0,0.00035616,7]
[314057426,1707949835221,-500.0,0.00035616,7]
[314057427,1707949835230,-929.32,0.00035616,7]
[314057428,1707949835239,-500.0,0.00035616,7]
[314057429,1707949835248,-500.0,0.00035616,7]
[314057430,1707949835258,-500.0,0.00035616,7]
[314057431,1707949835267,-500.0,0.00035616,7]
[314057432,1707949835277,-501.3,0.00035616,7]
[314057433,1707949835290,-500.0,0.00035616,7]
[314057434,1707949835300,-500.0,0.00035616,7]
[314057435,1707949835310,-500.0,0.00035616,7]
[314057436,1707949835319,-500.0,0.00035616,7]
[314057437,1707949835329,-500.0,0.00035616,7]
[314057438,1707949835338,-500.0,0.00035616,7]
[314057439,1707949835348,-578.24,0.00035616,7]
[314057440,1707949835358,-500.0,0.00035616,7]
[314057441,1707949835368,-634.46939758,0.00035616,7]
[314057442,1707949835378,-701.18,0.00035616,7]
[314057443,1707949835387,-500.0,0.00035616,7]
[314057444,1707949835397,-500.0,0.00035616,7]
[314057445,1707949835406,-500.0,0.00035616,7]
[314057446,1707949835416,-500.0,0.00035616,7]
[314057447,1707949835425,-1198.09,0.00035616,7]
[314057448,1707949835435,-567.9,0.00035616,7]
[314057449,1707949835445,-500.0,0.00035616,7]
[314057450,1707949835454,-514.7862864,0.00035616,7]
[314057451,1707949835464,-500.0,0.00035616,7]
[314057452,1707949835473,-500.0,0.00035616,7]
[314057453,1707949835483,-789.07,0.00035616,7]
[314057454,1707949835493,-500.0,0.00035616,7]
[314057455,1707949835502,-500.0,0.00035616,7]
[314057456,1707949835512,-254.86173603,0.00035616,7]
[314057457,1707949835522,-2192.94,0.00035616,7]
[314057458,1707949835531,-500.0,0.00035616,7]
[314057459,1707949835541,-509.53,0.00035616,7]
[314057460,1707949835552,-500.0,0.00035616,7]
[314057461,1707949835562,-500.0,0.00035616,7]
[314057462,1707949835571,-500.0,0.00035616,7]
[314057463,1707949835581,-500.0,0.00035616,7]
[314057464,1707949835590,-500.0,0.00035616,7]
[314057465,1707949835600,-1189.67,0.00035616,7]
[314057466,1707949835609,-500.0,0.00035616,7]
[314057467,1707949835618,-500.0,0.00035616,7]
[314057468,1707949835628,-522.22,0.00035616,7]
[314057469,1707949835638,-525.47680591,0.00035616,7]
[314057470,1707949835648,-500.0,0.00035616,7]
[314057471,1707949835657,-500.0,0.00035616,7]
[314057472,1707949835667,-500.0,0.00035616,7]
[314057473,1707949835676,-500.0,0.00035616,7]
[314057474,1707949835686,-500.0,0.00035616,7]
[314057475,1707949835695,-500.0,0.00035616,7]
[314057476,1707949835705,-500.0,0.00035616,7]
[314057477,1707949835714,-500.0,0.00035616,7]
[314057478,1707949835724,-912.32,0.00035616,7]
[314057479,1707949835734,-737.11,0.00035616,7]
[314057480,1707949835744,-420.47053597,0.00035655,7]
[314057481,1707949835755,-556.2,0.00035662,2]
[314057482,1707949835764,-17749.91730633,0.00035705,2]
[314057483,1707949835774,-153.54697605,0.0003579,2]
[314057484,1707949835784,-2063.4258,0.0003579,2]
[314057485,1707949835795,-647.68,0.00035798,2]
[314057486,1707949835805,-171.021518,0.00035798,18]
[314057487,1707949835815,-152.88,0.00035812,2]
[314057488,1707949835824,-556.2,0.0003585,2]
[314057489,1707949835834,-500.0,0.0003589,2]
[314057490,1707949835844,-500.0,0.0003589,7]
[314057491,1707949835853,-500.0,0.0003589,7]
[314057492,1707949835863,-168.09670955,0.0003589,7]
[314057493,1707949835874,-542.62392033,0.0003589,7]
[314057494,1707949835884,-500.0,0.0003589,7]
[314057495,1707949835893,-500.0,0.0003589,7]
[314057496,1707949835902,-500.0,0.0003589,7]
[314057497,1707949835911,-500.0,0.0003589,7]
[314057498,1707949835921,-500.0,0.0003589,7]
[314057499,1707949835930,-500.0,0.0003589,7]
[314057500,1707949835940,-500.0,0.0003589,7]
[314057501,1707949835949,-442.46,0.0003589,7]
[314057502,1707949835958,-500.0,0.0003589,7]
[314057503,1707949835967,-500.0,0.0003589,7]
[314057504,1707949835977,-500.0,0.0003589,7]
[314057505,1707949835986,-500.0,0.0003589,7]
[314057506,1707949835996,-500.0,0.0003589,7]
[314057507,1707949836005,-500.0,0.0003589,7]
[314057508,1707949836015,-500.0,0.0003589,7]
[314057509,1707949836024,-500.0,0.0003589,7]
[314057510,1707949836033,-500.0,0.0003589,7]
[314057511,1707949836043,-500.0,0.0003589,7]
[314057512,1707949836053,-500.0,0.0003589,7]
[314057513,1707949836062,-500.0,0.0003589,7]
[314057514,1707949836072,-500.0,0.0003589,7]
[314057515,1707949836082,-343.04,0.0003589,7]
[314057516,1707949836091,-500.0,0.0003589,7]
[314057517,1707949836102,-500.0,0.0003589,7]
[314057518,1707949836111,-500.0,0.0003589,7]
[314057519,1707949836121,-500.0,0.0003589,7]
[314057520,1707949836130,-500.0,0.0003589,7]
[314057521,1707949836140,-500.0,0.0003589,7]
[314057522,1707949836150,-500.0,0.0003589,7]
[314057523,1707949836160,-500.0,0.0003589,7]
[314057524,1707949836170,-500.0,0.0003589,7]
[314057525,1707949836180,-500.0,0.0003589,7]
[314057526,1707949836190,-500.0,0.0003589,7]
[314057527,1707949836200,-500.0,0.0003589,7]
[314057528,1707949836209,-500.0,0.0003589,7]
[314057529,1707949836219,-741.2,0.0003589,7]
[314057530,1707949836229,-500.0,0.0003589,7]
[314057531,1707949836238,-500.0,0.0003589,7]
[314057532,1707949836248,-500.0,0.0003589,7]
[314057533,1707949836257,-500.0,0.0003589,7]
[314057534,1707949836267,-845.79,0.0003589,7]
[314057535,1707949836277,-500.0,0.0003589,7]
[314057536,1707949836288,-500.0,0.0003589,7]
[314057537,1707949836299,-500.0,0.0003589,7]
[314057538,1707949836310,-500.0,0.0003589,7]
[314057539,1707949836320,-500.0,0.0003589,7]
[314057540,1707949836330,-500.0,0.0003589,7]
[314057541,1707949836341,-500.0,0.0003589,7]
[314057542,1707949836351,-500.0,0.0003589,7]
[314057543,1707949836361,-500.0,0.0003589,7]
[314057544,1707949836372,-500.0,0.0003589,7]
[314057545,1707949836382,-500.0,0.0003589,7]
[314057546,1707949836392,-500.0,0.0003589,7]
[314057547,1707949836403,-881.95,0.0003589,7]
[314057548,1707949836413,-500.0,0.0003589,7]
[314057549,1707949836422,-500.0,0.0003589,7]
[314057550,1707949836432,-500.0,0.0003589,7]
[314057551,1707949836443,-500.0,0.0003589,7]
[314057552,1707949836453,-1839.92,0.0003589,7]
[314057553,1707949836464,-648.59,0.0003589,7]
[314057554,1707949836474,-759.33,0.0003589,7]
[314057555,1707949836483,-500.0,0.0003589,7]
[314057556,1707949836493,-500.0,0.0003589,7]
[314057557,1707949836503,-500.0,0.0003589,7]
[314057558,1707949836513,-500.0,0.0003589,7]
[314057559,1707949836523,-1570.29,0.0003589,7]
[314057560,1707949836532,-500.0,0.0003589,7]
[314057561,1707949836543,-726.78,0.0003589,7]
[314057562,1707949836553,-500.0,0.0003589,7]
[314057563,1707949836562,-500.0,0.0003589,7]
[314057564,1707949836572,-500.0,0.0003589,7]
[314057565,1707949836581,-828.48,0.0003589,7]
[314057566,1707949836591,-500.0,0.0003589,7]
[314057567,1707949836601,-500.0,0.0003589,7]
[314057568,1707949836611,-500.0,0.0003589,7]
[314057569,1707949836622,-500.0,0.0003589,7]
[314057570,1707949836632,-500.0,0.0003589,7]
[314057571,1707949836641,-270.76064936,0.0003589,7]
[314057572,1707949836651,-500.0,0.0003589,7]
[314057573,1707949836661,-500.0,0.0003589,7]
[314057574,1707949836671,-500.0,0.0003589,7]
[314057575,1707949836681,-614.93,0.0003589,7]
[314057576,1707949836692,-500.0,0.0003589,7]
[314057577,1707949836703,-500.0,0.0003589,7]
[314057578,1707949836715,-500.0,0.0003589,7]
[314057579,1707949836726,-500.0,0.0003589,7]
[314057580,1707949836736,-500.0,0.0003589,7]
[314057581,1707949836746,-500.0,0.0003589,7]
[314057582,1707949836755,-500.0,0.0003589,7]
[314057583,1707949836765,-500.0,0.0003589,7]
[314057584,1707949836775,-500.0,0.0003589,7]
[314057585,1707949836784,-500.0,0.0003589,7]
[314057586,1707949836795,-500.0,0.0003589,7]
[314057587,1707949836806,-500.0,0.0003589,7]
[314057588,1707949836817,-1028.47,0.0003589,7]
[314057589,1707949836827,-500.0,0.0003589,7]
[314057590,1707949836837,-601.56822779,0.0003589,7]
[314057591,1707949836847,-500.0,0.0003589,7]
[314057592,1707949836857,-500.0,0.0003589,7]
[314057593,1707949836868,-654.23,0.0003589,7]
[314057594,1707949836877,-500.0,0.0003589,7]
[314057595,1707949836887,-500.0,0.0003589,7]
[314057596,1707949836896,-500.0,0.0003589,7]
[314057597,1707949836906,-500.0,0.0003589,7]
[314057598,1707949836915,-571.1,0.0003589,7]
[314057599,1707949836926,-500.0,0.0003589,7]
[314057600,1707949836936,-610.87,0.0003589,7]
[314057601,1707949836947,-500.0,0.0003589,7]
[314057602,1707949836956,-500.0,0.0003589,7]
[314057603,1707949836968,-500.0,0.0003589,7]
[314057604,1707949836978,-929.32,0.0003589,7]
[314057605,1707949836991,-500.0,0.0003589,7]
[314057606,1707949837002,-500.0,0.0003589,7]
[314057607,1707949837013,-500.0,0.0003589,7]
[314057608,1707949837024,-500.0,0.0003589,7]
[314057609,1707949837034,-500.0,0.0003589,7]
[314057610,1707949837044,-500.0,0.0003589,7]
[314057611,1707949837054,-550.18,0.0003589,7]
[314057612,1707949837063,-500.0,0.0003589,7]
[314057613,1707949837073,-500.0,0.0003589,7]
[314057614,1707949837083,-578.24,0.0003589,7]
[314057615,1707949837092,-500.0,0.0003589,7]
[314057616,1707949837102,-701.18,0.0003589,7]
[314057617,1707949837111,-500.0,0.0003589,7]
[314057618,1707949837120,-500.0,0.0003589,7]
[314057619,1707949837130,-500.0,0.0003589,7]
[314057620,1707949837139,-1198.09,0.0003589,7]
[314057621,1707949837149,-500.0,0.0003589,7]